fUST/lending_fUST_20250318
["ID","MTS","AMOUNT","RATE_DAILY","PERIOD"]
[356343102,1742305839482,-500.0,8.219e-05,2]
[356343103,1742305839492,-500.0,8.219e-05,2]
[356343104,1742305839501,-500.0,8.219e-05,2]
[356343105,1742305839511,-500.0,8.219e-05,2]
[356343106,1742305839521,-500.0,8.219e-05,2]
[356343107,1742305839531,-500.0,8.219e-05,2]
[356343108,1742305839541,-500.0,8.219e-05,2]
[356343109,1742305839550,-614.21940739,8.219e-05,2]
[356343110,1742305839560,-500.0,8.219e-05,2]
[356343111,1742305839569,-500.0,8.219e-05,2]
[356343112,1742305839584,-1487.08,8.219e-05,2]
[356343113,1742305839597,-500.0,8.219e-05,2]
[356343114,1742305839610,-1487.08,8.219e-05,2]
[356343115,1742305839623,-1487.08,8.219e-05,2]
[356343116,1742305839635,-500.0,8.219e-05,2]
[356343117,1742305839648,-1487.08,8.219e-05,2]
[356343118,1742305839659,-500.0,8.219e-05,2]
[356343119,1742305839670,-1487.08,8.219e-05,2]
[356343120,1742305839681,-1487.08,8.219e-05,2]
[356343121,1742305839693,-1487.08,8.219e-05,2]
[356343122,1742305839705,-500.0,8.219e-05,2]
[356343123,1742305839718,-1487.08,8.219e-05,2]
[356343124,1742305839732,-1487.08,8.219e-05,2]
[356343125,1742305839744,-1487.08,8.219e-05,2]
[356343126,1742305839756,-2483.48,8.219e-05,2]
[356343127,1742305839768,-1487.08,8.219e-05,2]
[356343128,1742305839780,-1487.08,8.219e-05,2]
[356343129,1742305839792,-1487.08,8.219e-05,2]
[356343130,1742305839805,-1487.08,8.219e-05,2]
[356343131,1742305839820,-1487.08,8.219e-05,2]
[356343132,1742305839833,-500.0,8.219e-05,2]
[356343133,1742305839846,-1487.08,8.219e-05,2]
[356343134,1742305839859,-500.0,8.219e-05,2]
[356343135,1742305839872,-1487.08,8.219e-05,2]
[356343136,1742305839884,-1487.08,8.219e-05,2]
[356343137,1742305839896,-500.0,8.219e-05,2]
[356343138,1742305839909,-1487.08,8.219e-05,2]
[356343139,1742305839921,-1487.08,8.219e-05,2]
[356343140,1742305839934,-1487.08,8.219e-05,2]
[356343141,1742305839946,-1487.08,8.219e-05,2]
[356343142,1742305839959,-1487.08,8.219e-05,2]
[356343143,1742305839972,-1487.08131162,8.219e-05,2]
[356343145,1742305839990,-500.0,8.219e-05,2]
[356343148,1742305840004,-532.17716736,8.219e-05,2]
[356343149,1742305840015,-500.0,8.219e-05,2]
[356343150,1742305840026,-500.0,8.219e-05,2]
[356343151,1742305840036,-500.0,8.219e-05,2]
[356343152,1742305840048,-500.0,8.219e-05,2]
[356343153,1742305840060,-500.0,8.219e-05,2]
[356343154,1742305840070,-500.0,8.219e-05,2]
[356343155,1742305840082,-500.0,8.219e-05,2]
[356343156,1742305840094,-500.0,8.219e-05,2]
[356343157,1742305840105,-500.0,8.219e-05,2]
[356343158,1742305840116,-500.0,8.219e-05,2]
[356343159,1742305840128,-500.0,8.219e-05,2]
[356343161,1742305840140,-500.0,8.219e-05,2]
[356343163,1742305840152,-500.0,8.219e-05,2]
[356343165,1742305840164,-500.0,8.219e-05,2]
[356343166,1742305840180,-500.0,8.219e-05,2]
[356343167,1742305840195,-500.0,8.219e-05,2]
[356343168,1742305840208,-500.0,8.219e-05,2]
[356343170,1742305840221,-500.0,8.219e-05,2]
[356343171,1742305840238,-247.72302766,8.219e-05,2]
[356343172,1742305840250,-2500.0,8.22e-05,2]
[356343173,1742305840263,-3778.38,8.241e-05,2]
[356343174,1742305840274,-3778.38,8.241e-05,2]
[356343175,1742305840285,-3778.38,8.241e-05,2]
[356343176,1742305840296,-3778.38,8.241e-05,2]
[356343177,1742305840311,-3778.46161968,8.241e-05,2]
[356343178,1742305840323,-622.2,8.269e-05,2]
[356343179,1742305840334,-500.0,8.291e-05,2]
[356343181,1742305840348,-500.0,8.291e-05,2]
[356343182,1742305840362,-500.0,8.291e-05,2]
[356343183,1742305840374,-500.0,8.291e-05,2]
[356343184,1742305840388,-500.0,8.291e-05,2]
[356343185,1742305840399,-500.0,8.291e-05,2]
[356343186,1742305840413,-500.0,8.291e-05,2]
[356343187,1742305840425,-500.0,8.291e-05,2]
[356343188,1742305840435,-500.0,8.291e-05,2]
[356343189,1742305840446,-500.0,8.291e-05,2]
[356343190,1742305840459,-12588.31,8.291e-05,2]
[356343191,1742305840472,-500.0,8.291e-05,2]
[356343192,1742305840487,-500.0,8.291e-05,2]
[356343193,1742305840498,-500.0,8.291e-05,2]
[356343194,1742305840509,-500.0,8.291e-05,2]
[356343195,1742305840520,-691.97,8.291e-05,2]
[356343196,1742305840531,-500.0,8.291e-05,2]
[356343197,1742305840543,-500.0,8.291e-05,2]
[356343198,1742305840554,-645.2214,8.324e-05,2]
[356343199,1742305840566,-669.0945918,8.379e-05,2]
[356343200,1742305840577,-693.8510917,8.434e-05,2]
[356343201,1742305840590,-719.52358209,8.489e-05,2]
[356343202,1742305840602,-500.0,8.493e-05,2]
[356343203,1742305840613,-500.0,8.493e-05,2]
[356343204,1742305840625,-544.44,8.493e-05,2]
[356343205,1742305840636,-500.0,8.493e-05,2]
[356343206,1742305840648,-500.0,8.493e-05,2]
[356343207,1742305840659,-514.77545165,8.493e-05,2]
[356343208,1742305840671,-500.0,8.493e-05,2]
[356343209,1742305840683,-500.0,8.493e-05,2]
[356343210,1742305840695,-500.0,8.493e-05,2]
[356343211,1742305840707,-500.0,8.493e-05,2]
[356343212,1742305840719,-500.0,8.493e-05,2]
[356343213,1742305840734,-500.0,8.493e-05,2]
[356343214,1742305840746,-500.0,8.493e-05,2]
[356343215,1742305840757,-500.0,8.493e-05,2]
[356343216,1742305840769,-500.0,8.493e-05,2]
[356343217,1742305840781,-500.0,8.493e-05,2]
[356343218,1742305840794,-500.0,8.493e-05,2]
[356343219,1742305840806,-500.0,8.493e-05,2]
[356343220,1742305840817,-625.13979299,8.493e-05,2]
[356343221,1742305840830,-500.0,8.493e-05,2]
[356343222,1742305840842,-500.0,8.493e-05,2]
[356343223,1742305840855,-500.0,8.493e-05,2]
[356343224,1742305840867,-500.0,8.493e-05,2]
[356343225,1742305840878,-500.0,8.493e-05,2]
[356343226,1742305840889,-500.0,8.493e-05,2]
[356343227,1742305840901,-500.0,8.493e-05,2]
[356343228,1742305840913,-500.0,8.493e-05,2]
[356343229,1742305840924,-500.0,8.493e-05,2]
[356343230,1742305840936,-500.0,8.493e-05,2]
[356343231,1742305840947,-179.27316249,8.493e-05,2]
[356343232,1742305840959,-500.0,8.493e-05,2]
[356343233,1742305840970,-500.0,8.493e-05,2]
[356343234,1742305840984,-500.0,8.493e-05,2]
[356343235,1742305840995,-500.0,8.493e-05,2]
[356343236,1742305841006,-500.0,8.493e-05,2]
[356343237,1742305841017,-500.0,8.493e-05,2]
[356343238,1742305841028,-514.75104493,8.493e-05,2]
[356343239,1742305841039,-508.66475481,8.493e-05,2]
[356343240,1742305841051,-500.0,8.493e-05,2]
[356343241,1742305841062,-502.7408238,8.493e-05,2]
[356343242,1742305841073,-500.0,8.493e-05,2]
[356343243,1742305841084,-354.93,8.493e-05,2]
[356343244,1742305841096,-526.52609571,8.493e-05,2]
[356343245,1742305841107,-500.0,8.493e-05,2]
[356343246,1742305841119,-516.78803631,8.493e-05,2]
[356343247,1742305841143,-500.0,8.493e-05,2]
[356343248,1742305841167,-500.0,8.493e-05,2]
[356343249,1742305841189,-500.0,8.493e-05,2]
[356343250,1742305841212,-500.66355087,8.493e-05,2]
[356343251,1742305841237,-500.0,8.493e-05,2]
[356343252,1742305841258,-520.19088206,8.493e-05,2]
[356343253,1742305841279,-508.92768849,8.493e-05,2]
[356343254,1742305841304,-516.19651787,8.493e-05,2]
[356343255,1742305841329,-500.0,8.493e-05,2]
[356343256,1742305841353,-500.0,8.493e-05,2]
[356343257,1742305841382,-500.0,8.493e-05,2]
[356343258,1742305841393,-500.0,8.493e-05,2]
[356343259,1742305841404,-500.0,8.493e-05,2]
[356343260,1742305841416,-500.0,8.493e-05,2]
[356343261,1742305841426,-500.0,8.493e-05,2]
[356343262,1742305841440,-500.0,8.493e-05,2]
[356343263,1742305841452,-503.26,8.493e-05,2]
[356343264,1742305841464,-1000.0,8.493e-05,2]
[356343265,1742305841478,-500.0,8.493e-05,2]
[356343266,1742305841490,-513.35520079,8.493e-05,2]
[356343267,1742305841502,-505.62948928,8.493e-05,2]
[356343268,1742305841514,-500.0,8.493e-05,2]
[356343269,1742305841526,-314.19275004,8.493e-05,2]
[356343270,1742305841537,-500.0,8.493e-05,2]
[356343271,1742305841548,-500.0,8.493e-05,2]
[356343272,1742305841559,-500.0,8.493e-05,2]
[356343273,1742305841570,-500.0,8.493e-05,2]
[356343274,1742305841580,-500.0,8.493e-05,2]
[356343275,1742305841591,-500.0,8.493e-05,2]
[356343276,1742305841602,-500.0,8.493e-05,2]
[356343277,1742305841614,-500.0,8.493e-05,2]
[356343278,1742305841625,-500.0,8.493e-05,2]
[356343279,1742305841636,-500.0,8.493e-05,2]
[356343280,1742305841647,-500.0,8.493e-05,2]
[356343281,1742305841657,-500.0,8.493e-05,2]
[356343282,1742305841669,-500.0,8.493e-05,2]
[356343283,1742305841679,-500.0,8.493e-05,2]
[356343284,1742305841690,-500.0,8.493e-05,2]
[356343285,1742305841701,-500.0,8.493e-05,2]
[356343286,1742305841711,-500.0,8.493e-05,2]
[356343287,1742305841723,-500.0,8.493e-05,2]
[356343288,1742305841736,-500.0,8.493e-05,2]
[356343289,1742305841747,-500.0,8.493e-05,2]
[356343290,1742305841758,-500.0,8.493e-05,2]
[356343291,1742305841770,-500.0,8.493e-05,2]
[356343292,1742305841782,-500.0,8.493e-05,2]
[356343293,1742305841793,-500.0,8.493e-05,2]
[356343294,1742305841805,-500.0,8.493e-05,2]
[356343295,1742305841816,-500.0,8.493e-05,2]
[356343296,1742305841828,-500.0,8.493e-05,2]
[356343297,1742305841839,-500.0,8.493e-05,2]
[356343298,1742305841851,-500.0,8.493e-05,2]
[356343299,1742305841861,-160.9819251,8.493e-05,2]
[356343300,1742305841872,-500.0,8.493e-05,2]
[356343301,1742305842101,-500.0,8.493e-05,2]
[356343302,1742305842119,-500.0,8.493e-05,2]
[356343303,1742305842131,-500.0,8.493e-05,2]
[356343304,1742305842140,-602.78,8.493e-05,2]
[356343305,1742305842150,-500.0,8.493e-05,2]
[356343306,1742305842161,-500.0,8.493e-05,2]
[356343307,1742305842172,-500.0,8.493e-05,2]
[356343308,1742305842186,-500.0,8.493e-05,2]
[356343309,1742305842196,-253.37,8.493e-05,2]
[356343310,1742305842205,-299.46198516,8.493e-05,2]
[356343311,1742305842215,-500.0,8.493e-05,2]
[356343312,1742305842227,-500.0,8.493e-05,2]
[356343313,1742305842238,-500.0,8.493e-05,2]
[356343314,1742305842247,-500.0,8.493e-05,2]
[356343315,1742305842259,-500.0,8.493e-05,2]
[356343316,1742305842269,-500.0,8.493e-05,2]
[356343317,1742305842279,-500.0,8.493e-05,2]
[356343318,1742305842289,-500.0,8.493e-05,2]
[356343319,1742305842299,-500.0,8.493e-05,2]
[356343320,1742305842309,-500.0,8.493e-05,2]
[356343321,1742305842319,-273.43319536,8.493e-05,2]
[356343322,1742305842329,-500.0,8.493e-05,2]
[356343323,1742305842348,-508.83056698,8.493e-05,2]
[356343324,1742305842359,-500.0,8.493e-05,2]
[356343325,1742305842370,-500.0,8.493e-05,2]
[356343326,1742305842380,-500.0,8.493e-05,2]
[356343327,1742305842391,-500.0,8.493e-05,2]
[356343328,1742305842401,-500.0,8.493e-05,2]
[356343329,1742305842412,-172.73,8.493e-05,2]
[356343330,1742305842422,-500.0,8.493e-05,2]
[356343331,1742305842432,-500.0,8.493e-05,2]
[356343332,1742305842442,-500.0,8.493e-05,2]
[356343333,1742305842453,-500.0,8.493e-05,2]
[356343334,1742305842463,-500.0,8.493e-05,2]
[356343335,1742305842474,-546.16791124,8.493e-05,2]
[356343336,1742305842488,-500.0,8.493e-05,2]
[356343337,1742305842499,-500.0,8.493e-05,2]
[356343338,1742305842509,-507.18702627,8.493e-05,2]
[356343339,1742305842520,-871.55,8.493e-05,2]
[356343340,1742305842531,-500.0,8.493e-05,2]
[356343341,1742305842542,-512.68963239,8.493e-05,2]
[356343342,1742305842553,-500.0,8.493e-05,2]
[356343343,1742305842563,-500.0,8.493e-05,2]
[356343344,1742305842574,-500.0,8.493e-05,2]
[356343345,1742305842585,-500.0,8.493e-05,2]
[356343346,1742305842595,-500.0,8.493e-05,2]
[356343347,1742305842605,-689.97,8.493e-05,2]
[356343348,1742305842616,-500.0,8.493e-05,2]
[356343349,1742305842626,-601.98395575,8.493e-05,2]
[356343350,1742305842636,-500.0,8.493e-05,2]
[356343351,1742305842646,-500.0,8.493e-05,2]
[356343352,1742305842656,-500.0,8.493e-05,2]
[356343353,1742305842667,-500.0,8.493e-05,2]
[356343354,1742305842677,-500.0,8.493e-05,2]
[356343355,1742305842688,-500.0,8.493e-05,2]
[356343356,1742305842699,-586.99,8.493e-05,2]
[356343357,1742305842709,-500.0,8.493e-05,2]
[356343358,1742305842719,-500.0,8.493e-05,2]
[356343359,1742305842734,-500.0,8.493e-05,2]
[356343360,1742305842744,-500.0,8.493e-05,2]
[356343361,1742305842755,-500.0,8.493e-05,2]
[356343362,1742305842766,-525.73613336,8.493e-05,2]
[356343364,1742305842776,-500.0,8.493e-05,2]
[356343367,1742305842786,-481.69,8.493e-05,2]
[356343370,1742305842797,-500.0,8.493e-05,2]
[356343372,1742305842807,-500.0,8.493e-05,2]
[356343374,1742305842818,-500.0,8.493e-05,2]
[356343376,1742305842829,-500.0,8.493e-05,2]
[356343378,1742305842839,-500.0,8.493e-05,2]
[356343380,1742305842850,-500.0,8.493e-05,2]
[356343382,1742305842861,-637.82,8.493e-05,2]
[356343383,1742305842872,-500.0,8.493e-05,2]
[356343384,1742305842882,-500.0,8.493e-05,2]
[356343385,1742305842893,-500.0,8.493e-05,2]
[356343386,1742305842902,-500.0,8.493e-05,2]
[356343387,1742305842912,-500.0,8.493e-05,2]
[356343388,1742305842922,-500.0,8.493e-05,2]
[356343389,1742305842932,-500.0,8.493e-05,2]
[356343390,1742305842942,-2483.48,8.493e-05,2]
[356343391,1742305842953,-500.0,8.493e-05,2]
[356343392,1742305842963,-500.0,8.493e-05,2]
[356343393,1742305842973,-500.0,8.493e-05,2]
[356343394,1742305842986,-500.0,8.493e-05,2]
[356343395,1742305842997,-500.0,8.493e-05,2]
[356343396,1742305843007,-234.02,8.493e-05,2]
[356343397,1742305843018,-500.0,8.493e-05,2]
[356343398,1742305843029,-500.0,8.493e-05,2]
[356343399,1742305843039,-500.0,8.493e-05,2]
[356343400,1742305843049,-500.0,8.493e-05,2]
[356343401,1742305843059,-500.0,8.493e-05,2]
[356343402,1742305843070,-500.0,8.493e-05,2]
[356343403,1742305843080,-500.0,8.493e-05,2]
[356343404,1742305843090,-530.6108374,8.493e-05,2]
[356343405,1742305843100,-571.5,8.493e-05,2]
[356343406,1742305843110,-500.0,8.565e-05,2]
[356343407,1742305843120,-500.0,8.565e-05,2]
[356343408,1742305843130,-500.0,8.565e-05,2]
[356343409,1742305843139,-500.0,8.565e-05,2]
[356343410,1742305843150,-500.0,8.565e-05,2]
[356343411,1742305843159,-500.0,8.565e-05,2]
[356343412,1742305843169,-500.0,8.565e-05,2]
[356343413,1742305843181,-500.0,8.565e-05,2]
[356343414,1742305843192,-151.0,8.565e-05,2]
[356343415,1742305843202,-12588.31,8.565e-05,2]
[356343416,1742305843213,-500.0,8.565e-05,2]
[356343417,1742305843223,-500.0,8.565e-05,2]
[356343418,1742305843235,-500.0,8.565e-05,2]
[356343419,1742305843246,-691.97,8.565e-05,2]
[356343420,1742305843257,-500.0,8.565e-05,2]
[356343421,1742305843268,-439.0307576,8.76e-05,2]
[356343422,1742305843278,-500.0,8.767e-05,2]
[356343423,1742305843288,-509.89048728,8.767e-05,2]
[356343424,1742305843299,-500.0,8.767e-05,2]
[356343425,1742305843309,-505.46877066,8.767e-05,2]
[356343426,1742305843319,-500.0,8.767e-05,2]
[356343427,1742305843328,-500.0,8.767e-05,2]
[356343428,1742305843338,-500.0,8.767e-05,2]
[356343429,1742305843348,-504.81338832,8.767e-05,2]
[356343430,1742305843358,-500.0,8.767e-05,2]
[356343431,1742305843368,-500.0,8.767e-05,2]
[356343432,1742305843378,-500.0,8.767e-05,2]
[356343433,1742305843389,-500.0,8.767e-05,2]
[356343434,1742305843399,-229.09,8.767e-05,2]
[356343435,1742305843410,-500.0,8.767e-05,2]
[356343436,1742305843420,-500.0,8.767e-05,2]
[356343437,1742305843431,-871.55,8.767e-05,2]
[356343438,1742305843441,-500.0,8.767e-05,2]
[356343439,1742305843452,-414.76942094,8.767e-05,2]
[356343441,1742305843462,-689.97,8.767e-05,2]
[356343443,1742305843472,-214.34,8.767e-05,2]
[356343445,1742305843486,-586.99,8.767e-05,2]
[356343446,1742305843496,-500.0,8.767e-05,2]
[356343447,1742305843506,-500.0,8.767e-05,2]
[356343448,1742305843516,-500.0,8.767e-05,2]
[356343449,1742305843527,-500.0,8.767e-05,2]
[356343450,1742305843537,-500.0,8.767e-05,2]
[356343451,1742305843547,-500.0,8.767e-05,2]
[356343452,1742305843557,-2483.48,8.767e-05,2]
[356343453,1742305843567,-500.0,8.767e-05,2]
[356343454,1742305843577,-628.20901862,8.767e-05,2]
[356343455,1742305843586,-500.0,8.767e-05,2]
[356343457,1742305843596,-500.0,8.77e-05,2]
[356343459,1742305843606,-500.0,8.839e-05,2]
[356343461,1742305843616,-500.0,8.839e-05,2]
[356343463,1742305843626,-500.0,8.839e-05,2]
[356343465,1742305843636,-500.0,8.839e-05,2]
[356343468,1742305843646,-500.0,8.839e-05,2]
[356343471,1742305843656,-12588.31,8.839e-05,2]
[356343474,1742305843667,-500.0,8.839e-05,2]
[356343477,1742305843677,-500.0,8.839e-05,2]
[356343480,1742305843687,-691.97,8.839e-05,2]
[356343483,1742305843697,-500.0,8.839e-05,2]
[356343487,1742305843707,-420.0,8.989e-05,2]
[356343489,1742305843716,-500.0,9.041e-05,2]
[356343493,1742305843728,-285.02,9.041e-05,2]
[356343495,1742305843738,-500.0,9.041e-05,2]
[356343500,1742305843747,-871.55,9.041e-05,2]
[356343504,1742305843757,-500.0,9.041e-05,2]
[356343508,1742305843767,-689.97,9.041e-05,2]
[356343512,1742305843777,-586.99,9.041e-05,2]
[356343515,1742305843787,-500.0,9.041e-05,2]
[356343518,1742305843797,-506.2201,9.041e-05,2]
[356343522,1742305843807,-500.0,9.041e-05,2]
[356343528,1742305843818,-500.0,9.041e-05,2]
[356343531,1742305843828,-500.0,9.041e-05,2]
[356343535,1742305843839,-2483.48,9.041e-05,2]
[356343539,1742305843850,-235.62,9.113e-05,2]
[356343543,1742305843860,-156.8,9.113e-05,2]
[356343545,1742305843870,-500.0,9.113e-05,2]
[356343547,1742305843880,-500.0,9.113e-05,2]
[356343549,1742305843890,-12588.31,9.113e-05,2]
[356343551,1742305843901,-500.0,9.113e-05,2]
[356343554,1742305843911,-500.0,9.113e-05,2]
[356343556,1742305843921,-691.97,9.113e-05,2]
[356343558,1742305843932,-500.0,9.315e-05,2]
[356343560,1742305843942,-500.0,9.315e-05,2]
[356343562,1742305843952,-871.55,9.315e-05,2]
[356343564,1742305843962,-208.68,9.315e-05,2]
[356343566,1742305843972,-689.97,9.315e-05,2]
[356343568,1742305843986,-586.99,9.315e-05,2]
[356343571,1742305843996,-500.0,9.315e-05,2]
[356343574,1742305844006,-500.0,9.315e-05,2]
[356343576,1742305844016,-425.0,9.315e-05,2]
[356343578,1742305844027,-500.0,9.315e-05,2]
[356343580,1742305844038,-2483.48,9.315e-05,2]
[356343581,1742305844048,-500.0,9.387e-05,2]
[356343582,1742305844058,-262.58,9.387e-05,2]
[356343583,1742305844068,-12588.31,9.387e-05,2]
[356343584,1742305844078,-500.0,9.387e-05,2]
[356343585,1742305844087,-500.0,9.387e-05,2]
[356343586,1742305844097,-691.97,9.387e-05,2]
[356343587,1742305844107,-160.0,9.497e-05,2]
[356343588,1742305844116,-160.0,9.497e-05,2]
[356343589,1742305844126,-12458.93820146,9.497e-05,2]
[356343590,1742305844136,-160.0,9.497e-05,2]
[356343591,1742305844145,-417.85479977,9.497e-05,2]
[356343592,1742305844155,-833.90657078,9.497e-05,2]
[356343593,1742305844165,-500.0,9.589e-05,2]
[356343594,1742305844175,-151.0,9.589e-05,2]
[356343595,1742305844189,-500.0,9.589e-05,2]
[356343596,1742305844199,-871.55,9.589e-05,2]
[356343597,1742305844209,-689.97,9.589e-05,2]
[356343598,1742305844221,-586.99,9.589e-05,2]
[356343599,1742305844232,-500.0,9.589e-05,2]
[356343600,1742305844241,-500.0,9.589e-05,2]
[356343601,1742305844251,-500.0,9.589e-05,2]
[356343602,1742305844262,-2483.48,9.589e-05,2]
[356343603,1742305844272,-2500.0,9.59e-05,2]
[356343604,1742305844282,-500.0,9.661e-05,2]
[356343605,1742305844292,-12588.31,9.661e-05,2]
[356343606,1742305844302,-500.0,9.661e-05,2]
[356343607,1742305844312,-500.0,9.661e-05,2]
[356343608,1742305844325,-691.97,9.661e-05,2]
[356343609,1742305844335,-500.0,9.863e-05,2]
[356343610,1742305844346,-500.0,9.863e-05,2]
[356343611,1742305844356,-871.55,9.863e-05,2]
[356343612,1742305844366,-689.97,9.863e-05,2]
[356343613,1742305844376,-586.99,9.863e-05,2]
[356343614,1742305844386,-500.0,9.863e-05,2]
[356343615,1742305844396,-500.0,9.863e-05,2]
[356343616,1742305844406,-500.0,9.863e-05,2]
[356343617,1742305844416,-2483.48,9.863e-05,2]
[356343618,1742305844426,-587.0,9.888e-05,2]
[356343619,1742305844437,-406.06,9.935e-05,2]
[356343620,1742305844447,-12588.31,9.935e-05,2]
[356343622,1742305844457,-500.0,9.935e-05,2]
[356343625,1742305844467,-500.0,9.935e-05,2]
[356343627,1742305844479,-691.97,9.935e-05,2]
[356343629,1742305844489,-477.77,0.0001,2]
[356343631,1742305844499,-13688.55347901,0.0001,2]
[356343633,1742305844509,-13688.55347881,0.0001,2]
[356343635,1742305844519,-500.0,0.00010136,2]
[356343637,1742305844529,-500.0,0.00010136,2]
[356343638,1742305844539,-871.55,0.00010136,2]
[356343639,1742305844548,-689.97,0.00010136,2]
[356343640,1742305844558,-586.99,0.00010136,2]
[356343641,1742305844568,-500.0,0.00010136,2]
[356343642,1742305844579,-500.0,0.00010136,2]
[356343643,1742305844589,-500.0,0.00010136,2]
[356343644,1742305844600,-2483.48,0.00010136,2]
[356343645,1742305844610,-12588.31,0.00010209,2]
[356343646,1742305844620,-500.0,0.00010209,2]
[356343647,1742305844631,-244.06,0.00010209,2]
[356343648,1742305844642,-691.97,0.00010209,2]
[356343649,1742305844653,-500.0,0.0001041,2]
[356343650,1742305844663,-500.0,0.0001041,2]
[356343651,1742305844673,-871.55,0.0001041,2]
[356343652,1742305844683,-689.97,0.0001041,2]
[356343653,1742305844692,-586.99,0.0001041,2]
[356343654,1742305844702,-500.0,0.0001041,2]
[356343655,1742305844713,-500.0,0.0001041,2]
[356343656,1742305844722,-500.0,0.0001041,2]
[356343657,1742305844735,-2483.48,0.0001041,2]
[356343658,1742305844745,-12588.31,0.00010483,2]
[356343659,1742305844755,-500.0,0.00010483,2]
[356343660,1742305844764,-691.97,0.00010483,2]
[356343661,1742305844774,-177.1063621,0.00010587,2]
[356343662,1742305844784,-13688.55347881,0.00010662,2]
[356343663,1742305844794,-500.0,0.00010684,2]
[356343664,1742305844804,-364.913,0.00010684,2]
[356343665,1742305844814,-151.0,0.00010684,2]
[356343666,1742305844824,-464.54,0.00010684,2]
[356343667,1742305844834,-871.55,0.00010684,2]
[356343668,1742305844844,-689.97,0.00010684,2]
[356343669,1742305844854,-500.0,0.00010684,2]
[356343670,1742305844863,-586.99,0.00010684,2]
[356343671,1742305844874,-500.0,0.00010684,2]
[356343672,1742305844885,-500.0,0.00010684,2]
[356343673,1742305844898,-2483.48,0.00010684,2]
[356343674,1742305844908,-218.349159,0.00010685,2]
[356343675,1742305844918,-12588.31,0.00010757,2]
[356343676,1742305844928,-445.43595265,0.00010757,2]
[356343677,1742305844939,-691.97,0.00010757,2]
[356343678,1742305844950,-823.0,0.00010876,2]
[356343680,1742305844961,-500.0,0.00010958,2]
[356343682,1742305844971,-871.55,0.00010958,2]
[356343684,1742305844984,-689.97,0.00010958,2]
[356343686,1742305844994,-586.99,0.00010958,2]
[356343688,1742305845004,-500.0,0.00010958,2]
[356343690,1742305845014,-604.16946614,0.00010958,2]
[356343692,1742305845024,-2483.48,0.00010958,2]
[356343694,1742305845034,-837.99949845,0.00010959,2]
[356343699,1742305845237,-500.0,8.219e-05,2]
[356343700,1742305845248,-500.0,8.493e-05,2]
[356343701,1742305845260,-68.61587455,0.00010959,2]
[356343702,1742305845271,-320.89,0.00010959,2]
[356343703,1742305845281,-429.0,0.00010959,2]
[356343704,1742305845291,-357.5,0.00010959,2]
[356343705,1742305845301,-297.91,0.00010959,2]
[356343706,1742305845311,-2500.0,0.0001096,2]
[356343707,1742305845320,-12588.31,0.00011031,2]
[356343708,1742305845331,-691.97,0.00011031,2]
[356343709,1742305845341,-500.0,0.00011232,2]
[356343710,1742305845351,-871.55,0.00011232,2]
[356343711,1742305845361,-689.97,0.00011232,2]
[356343712,1742305845371,-586.99,0.00011232,2]
[356343713,1742305845380,-68.7627545,0.00011232,2]
[356343714,1742305845393,-431.2372455,0.00011232,2]
[356343715,1742305845403,-2155.9587545,0.00011232,2]
[356343716,1742305845419,-284.48608103,0.00011232,2]
[356343717,1742305845431,-43.03516447,0.00011232,2]
[356343718,1742305845591,-2956.96483553,0.00011305,2]
[356343719,1742305845605,-9631.34516447,0.00011305,2]
[356343720,1742305845615,-691.97,0.00011305,2]
[356343721,1742305845625,-500.0,0.00011506,2]
[356343722,1742305845635,-871.55,0.00011506,2]
[356343723,1742305845644,-689.97,0.00011506,2]
[356343724,1742305845654,-586.99,0.00011506,2]
[356343725,1742305845664,-500.0,0.00011506,2]